bitfinex/quotes_BTCUSD_20240721
["timestamp","ask_amount","ask_price","bid_price","bid_amount"]
[1721572246381,0.0445777,67233.0,67232.0,0.03594611]
[1721572246599,0.0454177,67235.0,67234.0,0.03594611]
[1721572246832,0.00084,67235.0,67234.0,0.03594611]
[1721572247283,0.00084,67235.0,67232.0,0.03594611]
[1721572247284,0.21511479,67235.0,67232.0,0.03594611]
[1721572247500,0.06684804,67234.0,67233.0,0.03594611]
[1721572247707,0.13794,67235.0,67234.0,0.03594611]
[1721572247708,0.20478804,67235.0,67234.0,0.03594611]
[1721572247916,0.14298804,67235.0,67234.0,0.03594611]
[1721572248763,0.06768804,67235.0,67234.0,0.03594611]
[1721572248978,0.00084,67235.0,67234.0,0.03594611]
[1721572249407,0.06768804,67235.0,67234.0,0.03594611]
[1721572249830,0.00084,67235.0,67234.0,0.03594611]
[1721572250249,0.04540422,67235.0,67234.0,0.03594611]
[1721572251171,0.04540422,67235.0,67234.0,0.17664611]
[1721572251172,0.00084,67235.0,67234.0,0.17664611]
[1721572251386,0.01184,67235.0,67234.0,0.17664611]
[1721572251811,0.01184,67235.0,67234.0,0.03594611]
[1721572252074,0.05640422,67235.0,67234.0,0.03594611]
[1721572252286,0.02184,67235.0,67234.0,0.03594611]
[1721572252492,0.30924361,67235.0,67225.0,0.03594611]
[1721572252705,0.07717479,67228.0,67225.0,0.03594611]
[1721572252913,0.40386221,67227.0,67224.0,0.03594611]
[1721572253123,0.40386221,67227.0,67225.0,0.03594611]
[1721572253124,0.04456198,67226.0,67225.0,0.03594611]
[1721572253563,0.04456198,67226.0,67211.0,0.297569]
[1721572253564,0.0753,67225.0,67220.0,0.03594611]
[1721572253773,0.148759,67223.0,67220.0,0.03594611]
[1721572253978,0.14876,67222.0,67220.0,0.03594611]
[1721572254183,0.148763,67221.0,67220.0,0.03594611]
[1721572255226,0.148763,67221.0,67218.0,0.03594611]
[1721572255465,0.148763,67221.0,67219.0,0.03594611]
[1721572255699,0.159763,67221.0,67219.0,0.03594611]
[1721572255934,0.159763,67221.0,67218.0,0.03594611]
[1721572256202,0.148763,67221.0,67220.0,0.03594611]
[1721572256682,0.347708,67223.0,67221.0,0.03594611]
[1721572256931,0.14876,67222.0,67221.0,0.03594611]
[1721572257420,0.198948,67223.0,67222.0,0.03594611]
[1721572257676,0.14876,67222.0,67221.0,0.03594611]
[1721572258414,0.15438174,67223.0,67222.0,0.03594611]
[1721572260927,0.34770574,67223.0,67222.0,0.03594611]
[1721572261175,0.14876,67222.0,67221.0,0.03594611]
[1721572261805,0.14876,67222.0,67220.0,0.03594611]
[1721572261806,0.19332659,67222.0,67220.0,0.03594611]
[1721572262560,0.20432659,67222.0,67220.0,0.03594611]
[1721572262965,0.05556659,67222.0,67221.0,0.03594611]
[1721572263219,0.05556659,67222.0,67209.0,0.03594611]
[1721572263220,0.076,67215.0,67209.0,0.03594611]
[1721572263414,0.04457301,67213.0,67208.0,0.03594611]
[1721572263618,0.15438174,67212.0,67208.0,0.03594611]
[1721572263820,0.15438174,67212.0,67203.0,0.0616]
[1721572263821,0.04457301,67211.0,67209.0,0.03594611]
[1721572263971,0.19335801,67211.0,67209.0,0.03594611]
[1721572264172,0.19335801,67211.0,67208.0,0.03594611]
[1721572264371,0.148788,67210.0,67209.0,0.03594611]
[1721572264577,0.148788,67210.0,67208.0,0.03594611]
[1721572264802,0.15438174,67212.0,67206.0,0.03594611]
[1721572264803,0.14879,67209.0,67206.0,0.03594611]
[1721572265005,0.14879,67209.0,67207.0,0.03594611]
[1721572265851,0.14879,67209.0,67202.0,0.000924]
[1721572265852,0.446394,67205.0,67204.0,0.03594611]
[1721572266069,0.30317974,67205.0,67204.0,0.03594611]
[1721572266308,0.34774622,67205.0,67204.0,0.03594611]
[1721572266482,0.30317974,67205.0,67204.0,0.03594611]
[1721572266831,0.19336048,67207.0,67206.0,0.03594611]
[1721572267033,0.005,67210.0,67206.0,0.03594611]
[1721572267034,0.04456648,67208.0,67206.0,0.03594611]
[1721572267243,0.15438174,67209.0,67208.0,0.03594611]
[1721572267462,0.19893748,67209.0,67208.0,0.03594611]
[1721572267876,0.30317074,67209.0,67208.0,0.03594611]
[1721572268088,0.34772059,67209.0,67208.0,0.03594611]
[1721572268255,0.30317074,67209.0,67208.0,0.03594611]
[1721572268463,0.31317074,67209.0,67208.0,0.03594611]
[1721572268676,0.16438174,67209.0,67208.0,0.03594611]
[1721572268859,0.15438174,67209.0,67208.0,0.03594611]
[1721572269280,0.16838174,67209.0,67208.0,0.03594611]
[1721572269482,0.17238174,67209.0,67208.0,0.03594611]
[1721572269687,0.32117074,67209.0,67208.0,0.03594611]
[1721572270087,0.31717074,67209.0,67208.0,0.03594611]
[1721572270630,0.33117074,67209.0,67208.0,0.03594611]
[1721572271076,0.62874974,67209.0,67208.0,0.03594611]
[1721572271294,0.148793,67208.0,67207.0,0.03594611]
[1721572271511,0.30317474,67208.0,67206.0,0.03594611]
[1721572271940,0.148794,67207.0,67206.0,0.03594611]
[1721572272154,0.148794,67207.0,67202.0,0.03687011]
[1721572272155,0.148799,67205.0,67202.0,0.03687011]
[1721572272366,0.148796,67206.0,67204.0,0.03594611]
[1721572272801,0.16738174,67208.0,67202.0,0.000924]
[1721572272802,0.148794,67207.0,67206.0,0.03594611]
[1721572275585,0.025,67207.0,67206.0,0.03594611]
[1721572276476,0.173794,67207.0,67206.0,0.03594611]
[1721572276716,0.173794,67207.0,67202.0,0.000924]
[1721572276717,0.148796,67206.0,67204.0,0.03594611]
[1721572277601,0.24698056,67206.0,67204.0,0.03594611]
[1721572278862,0.159796,67206.0,67204.0,0.03594611]
[1721572279073,0.171796,67206.0,67204.0,0.03594611]
[1721572279303,0.1488,67204.0,67202.0,0.03687011]
[1721572279511,0.17738174,67206.0,67202.0,0.03687011]
[1721572279512,0.446407,67203.0,67202.0,0.000924]
[1721572279939,1.04339374,67203.0,67202.0,0.000924]
[1721572281194,0.74578874,67203.0,67202.0,0.03687011]
[1721572281406,0.01284,67206.0,67205.0,0.03594611]
[1721572281623,0.16722174,67206.0,67205.0,0.03594611]
[1721572281828,0.148798,67205.0,67204.0,0.03594611]
[1721572283309,0.159798,67205.0,67204.0,0.03594611]
[1721572283729,0.171798,67205.0,67204.0,0.03594611]
[1721572284580,0.320596,67205.0,67202.0,0.03687011]
[1721572284790,0.171799,67205.0,67204.0,0.03594611]
[1721572285028,0.171798,67205.0,67204.0,0.03594611]
[1721572285450,0.023,67205.0,67204.0,0.03594611]
[1721572285660,0.012,67205.0,67204.0,0.11694611]
[1721572285864,0.023,67205.0,67204.0,0.18164611]
[1721572286482,0.012,67205.0,67204.0,0.18164611]
[1721572286893,0.011,67205.0,67204.0,0.18164611]
[1721572287304,0.023,67205.0,67204.0,0.18164611]
[1721572287713,0.011,67205.0,67204.0,0.18164611]
[1721572288119,0.00084,67206.0,67205.0,0.03594611]
[1721572290129,0.01184,67206.0,67205.0,0.03594611]
[1721572292515,0.02384,67206.0,67205.0,0.03594611]
[1721572292957,0.01284,67206.0,67205.0,0.03594611]
[1721572293319,0.01184,67206.0,67205.0,0.03594611]
[1721572295882,0.00084,67206.0,67205.0,0.03594611]
[1721572296282,0.01084,67206.0,67205.0,0.03594611]
[1721572296534,0.01084,67206.0,67202.0,0.000924]
[1721572296535,0.01084,67206.0,67204.0,0.03594611]
[1721572296720,0.149636,67206.0,67205.0,0.03594611]
[1721572297123,0.172636,67206.0,67205.0,0.03594611]
[1721572297721,0.160636,67206.0,67205.0,0.03594611]
[1721572298109,0.148798,67205.0,67204.0,0.03594611]
[1721572298754,0.38994938,67206.0,67205.0,0.03594611]
[1721572298935,0.19664,67206.0,67205.0,0.03594611]
[1721572299133,0.19564,67206.0,67205.0,0.03594611]
[1721572299559,0.18564,67206.0,67205.0,0.03594611]
[1721572299705,0.334436,67206.0,67205.0,0.03594611]
[1721572300522,0.37899027,67206.0,67205.0,0.03594611]
[1721572301001,0.37899027,67206.0,67203.0,0.03594611]
[1721572301002,0.148798,67205.0,67203.0,0.03594611]
[1721572301204,0.148802,67203.0,67202.0,0.03687011]
[1721572301409,0.62916127,67203.0,67202.0,0.000924]
[1721572301586,0.64352794,67203.0,67202.0,0.000924]
[1721572301750,0.584607,67203.0,67202.0,0.03687011]
[1721572301944,0.56728403,67203.0,67202.0,0.03687011]
[1721572302148,0.522707,67203.0,67202.0,0.03687011]
[1721572302346,0.56728346,67203.0,67202.0,0.03687011]
[1721572302551,0.528707,67203.0,67202.0,0.03687011]
[1721572303128,0.522707,67203.0,67202.0,0.03687011]
[1721572303575,0.59857169,67203.0,67202.0,0.03687011]
[1721572304224,0.07586469,67203.0,67202.0,0.03687011]
[1721572304428,0.05359076,67203.0,67202.0,0.11237011]
[1721572304642,0.009,67203.0,67202.0,0.11237011]
[1721572305955,0.05360174,67203.0,67202.0,0.11237011]
[1721572306156,0.06360174,67203.0,67202.0,0.11237011]
[1721572307395,0.019,67203.0,67202.0,0.11237011]
[1721572309642,0.06365874,67203.0,67202.0,0.23596292]
[1721572310058,0.019,67203.0,67202.0,0.23596292]
[1721572310271,0.06365874,67203.0,67202.0,0.23596292]
[1721572310879,0.05365874,67203.0,67202.0,0.23596292]
[1721572311132,0.009,67203.0,67202.0,0.23596292]
[1721572311513,0.019,67203.0,67202.0,0.23596292]
[1721572311877,0.019,67203.0,67202.0,0.23596397]
[1721572312279,0.009,67203.0,67202.0,0.23596397]
[1721572313078,0.009,67203.0,67202.0,0.23596398]
[1721572313079,0.05450108,67203.0,67202.0,0.23596398]
[1721572313308,0.00984,67203.0,67202.0,0.23596398]
[1721572313707,0.00084,67203.0,67202.0,0.23596398]
[1721572314514,0.00984,67203.0,67202.0,0.42955928]
[1721572314695,0.00984,67203.0,67202.0,0.78936928]
[1721572314900,0.00984,67203.0,67202.0,0.74457898]
[1721572315111,0.00984,67203.0,67202.0,0.62098511]
[1721572315349,0.00984,67203.0,67202.0,0.74457409]
[1721572315555,0.0554993,67203.0,67202.0,0.74457409]
[1721572315895,0.01084,67203.0,67202.0,0.74457409]
[1721572316215,0.00184,67203.0,67202.0,0.74457409]
[1721572316419,0.00284,67203.0,67202.0,0.74457409]
[1721572317017,0.00284,67203.0,67202.0,1.1514961]
[1721572317225,0.00284,67203.0,67202.0,1.35587784]
[1721572317430,0.00284,67203.0,67202.0,1.30587784]
[1721572317634,0.00284,67203.0,67202.0,1.35587784]
[1721572317837,0.00284,67203.0,67202.0,1.30587784]
[1721572318067,0.00284,67203.0,67202.0,1.35587784]
[1721572318263,0.00284,67203.0,67202.0,1.35586523]
[1721572319004,0.00184,67203.0,67202.0,1.30586523]
[1721572319203,0.00184,67203.0,67202.0,1.65347523]
[1721572319615,0.00084,67203.0,67202.0,1.65347523]
[1721572320156,0.00184,67203.0,67202.0,1.65347523]
[1721572320423,0.00384,67203.0,67202.0,1.35886523]
[1721572320634,0.00384,67203.0,67202.0,1.19955322]
[1721572320847,0.00384,67203.0,67202.0,1.19955072]
[1721572321050,0.00284,67203.0,67202.0,1.19755072]
[1721572321256,0.00384,67203.0,67202.0,1.19955072]
[1721572321716,0.00184,67203.0,67202.0,1.19855072]
[1721572321935,0.00184,67203.0,67202.0,0.30014398]
[1721572322129,0.00184,67203.0,67202.0,0.16244398]
[1721572322539,0.00184,67203.0,67202.0,0.03987011]
[1721572322751,0.00284,67203.0,67202.0,0.03987011]
[1721572323191,0.00284,67203.0,67202.0,0.03887011]
[1721572323192,0.00184,67203.0,67202.0,0.03887011]
[1721572323392,0.00084,67203.0,67202.0,0.03687011]
[1721572323578,0.00084,67203.0,67202.0,0.03987011]
[1721572324722,0.04546303,67203.0,67202.0,0.03987011]
[1721572326861,0.00084,67203.0,67202.0,0.10257011]
[1721572328173,0.00084,67203.0,67202.0,0.22615957]
[1721572329361,0.00084,67203.0,67202.0,0.10257011]
[1721572329529,0.00084,67203.0,67202.0,0.22615853]
[1721572329942,0.00084,67203.0,67202.0,0.10257011]
[1721572331163,0.00084,67203.0,67202.0,0.22615899]
[1721572333005,0.00084,67203.0,67202.0,0.07757011]
[1721572333207,0.00084,67203.0,67202.0,0.20115843]
[1721572333409,0.00084,67203.0,67202.0,0.13845843]
[1721572333764,0.00084,67203.0,67202.0,0.28726343]
[1721572334547,0.03130653,67208.0,67207.0,0.01487011]
[1721572335223,0.06693979,67210.0,67207.0,0.01487011]
[1721572335456,0.06693979,67210.0,67209.0,0.01487011]
[1721572336137,0.1738,67211.0,67209.0,0.01487011]
[1721572336138,0.26305306,67211.0,67209.0,0.01487011]
[1721572336340,0.26304951,67211.0,67210.0,0.01487011]
[1721572336553,0.1738,67211.0,67210.0,0.01487011]
[1721572337638,0.1818,67211.0,67210.0,0.01487011]
[1721572337886,0.1888,67211.0,67210.0,0.01487011]
[1721572338300,0.1968,67211.0,67210.0,0.01487011]
[1721572338504,0.30836189,67211.0,67210.0,0.01487011]
[1721572338707,0.1968,67211.0,67210.0,0.01487011]
[1721572340024,0.30836438,67211.0,67210.0,0.01487011]
[1721572340343,0.1968,67211.0,67210.0,0.01487011]
[1721572340518,0.30836438,67211.0,67210.0,0.01487011]
[1721572340895,0.45714938,67211.0,67210.0,0.01487011]
[1721572341889,0.22609,67209.0,67205.0,0.01487011]
[1721572342085,0.16655444,67209.0,67208.0,0.01487011]
[1721572342239,0.16655444,67209.0,67207.0,0.01487011]
[1721572342441,0.15875452,67208.0,67207.0,0.01487011]
[1721572344087,0.15875452,67208.0,67205.0,0.01487011]
[1721572344088,0.148796,67206.0,67205.0,0.01487011]
[1721572344293,0.218296,67206.0,67205.0,0.01487011]
[1721572345147,0.220296,67206.0,67205.0,0.01487011]
[1721572345957,0.0715,67206.0,67205.0,0.01487011]
[1721572346419,0.220296,67206.0,67205.0,0.01579411]
[1721572347200,0.81648,67206.0,67205.0,0.000924]
[1721572347403,1.08243702,67206.0,67205.0,0.000924]
[1721572347606,1.22283702,67206.0,67205.0,0.000924]
[1721572347806,1.11126174,67206.0,67205.0,0.000924]
[1721572348206,1.11126174,67206.0,67205.0,0.100924]
[1721572348872,1.10926174,67206.0,67205.0,0.100924]
[1721572349211,1.10826174,67206.0,67205.0,0.100924]
[1721572349429,1.27532083,67206.0,67205.0,0.100924]
[1721572349633,1.28332083,67206.0,67205.0,0.100924]
[1721572350027,1.27532083,67206.0,67205.0,0.100924]
[1721572350377,1.57291283,67206.0,67205.0,0.100924]
[1721572350593,1.58491283,67206.0,67205.0,0.100924]
[1721572350793,1.59791283,67206.0,67205.0,0.100924]
[1721572351000,1.44385374,67206.0,67205.0,0.100924]
[1721572351559,1.57776187,67206.0,67205.0,0.100924]
[1721572351785,1.44385374,67206.0,67205.0,0.100924]
[1721572352193,1.55286758,67206.0,67205.0,0.100924]
[1721572352394,1.59482755,67206.0,67205.0,0.100924]
[1721572354309,1.72866278,67206.0,67205.0,0.100924]
[1721572354530,1.72866,67206.0,67205.0,0.100924]
[1721572354908,1.55286758,67206.0,67205.0,0.100924]
[1721572355486,1.6866816,67206.0,67205.0,0.100924]
[1721572355889,1.55286758,67206.0,67205.0,0.100924]
[1721572356449,1.68666089,67206.0,67205.0,0.100924]
[1721572358180,1.68663746,67206.0,67205.0,0.100924]
[1721572358379,1.8409726,67206.0,67205.0,0.100924]
[1721572358580,1.68662303,67206.0,67205.0,0.100924]
[1721572358789,1.55286758,67206.0,67205.0,0.100924]
[1721572359995,1.68659509,67206.0,67205.0,0.100924]
[1721572360199,1.55286758,67206.0,67205.0,0.100924]
[1721572360425,1.68658065,67206.0,67205.0,0.100924]
[1721572360846,1.84093022,67206.0,67205.0,0.100924]
[1721572361021,1.70721715,67206.0,67205.0,0.100924]
[1721572361216,1.55286758,67206.0,67205.0,0.100924]
[1721572361418,1.57586758,67206.0,67205.0,0.100924]
[1721572361710,1.70955947,67206.0,67205.0,0.100924]
[1721572361914,1.57586758,67206.0,67205.0,0.100924]
[1721572362085,1.70955684,67206.0,67205.0,0.100924]
[1721572362813,1.57586758,67206.0,67205.0,0.100924]
[1721572366143,2.07780915,67206.0,67205.0,0.100924]
[1721572366279,2.2114813,67206.0,67205.0,0.100924]
[1721572366485,2.05713173,67206.0,67205.0,0.100924]
[1721572367311,1.92345958,67206.0,67205.0,0.100924]
[1721572367664,1.95858947,67206.0,67205.0,0.100924]
[1721572367990,1.92345958,67206.0,67205.0,0.100924]
[1721572368617,1.98616385,67206.0,67205.0,0.100924]
[1721572368842,1.92345958,67206.0,67205.0,0.100924]
[1721572369843,2.08035958,67206.0,67205.0,0.100924]
[1721572370952,2.11548947,67206.0,67205.0,0.100924]
[1721572371317,2.24914403,67206.0,67205.0,0.100924]
[1721572371645,2.11548947,67206.0,67205.0,0.100924]
[1721572372300,2.24913392,67206.0,67205.0,0.100924]
[1721572372491,2.40348349,67206.0,67205.0,0.100924]
[1721572373196,2.26983904,67206.0,67205.0,0.100924]
[1721572375786,2.08035958,67206.0,67205.0,0.100924]
[1721572375954,1.92345958,67206.0,67205.0,0.100924]
[1721572377736,1.94680064,67206.0,67205.0,0.100924]
[1721572378355,1.98193053,67206.0,67205.0,0.100924]
[1721572378775,1.94680064,67206.0,67205.0,0.100924]
[1721572379662,2.10115021,67206.0,67205.0,0.100924]
[1721572380621,1.94680064,67206.0,67205.0,0.100924]
[1721572387452,1.88370064,67206.0,67205.0,0.100924]
[1721572387664,1.38930864,67206.0,67205.0,0.100924]
[1721572387872,1.54622246,67206.0,67205.0,0.100924]
[1721572389143,1.54624348,67206.0,67205.0,0.100924]
[1721572389345,1.41246758,67206.0,67205.0,0.100924]
[1721572389555,1.56681715,67206.0,67205.0,0.100924]
[1721572389790,1.62981715,67206.0,67205.0,0.100924]
[1721572390374,1.70281715,67206.0,67205.0,0.100924]
[1721572390788,1.78611715,67206.0,67205.0,0.100924]
[1721572391038,2.11883904,67206.0,67205.0,0.100924]
[1721572391246,2.08370915,67206.0,67205.0,0.100924]
[1721572391447,2.23420704,67206.0,67205.0,0.100924]
[1721572391647,2.42623693,67206.0,67205.0,0.100924]
[1721572391877,2.27573904,67206.0,67205.0,0.100924]
[1721572392093,2.42632868,67206.0,67205.0,0.100924]
[1721572392297,2.4263272,67206.0,67205.0,0.100924]
[1721572392498,2.24060915,67206.0,67205.0,0.100924]
[1721572393872,2.27573904,67206.0,67205.0,0.100924]
[1721572394077,0.14701384,67206.0,67205.0,0.238324]
[1721572394276,0.1075,67206.0,67205.0,0.25319411]
[1721572394675,0.19676569,67206.0,67205.0,0.25319411]
[1721572394942,0.17444739,67206.0,67205.0,0.25319411]
[1721572395425,0.1075,67206.0,67205.0,0.25319411]
[1721572395642,0.17443454,67206.0,67205.0,0.25319411]
[1721572395845,0.17443518,67206.0,67205.0,0.25319411]
[1721572396181,0.25631065,67206.0,67205.0,0.25319411]
[1721572396386,0.2117,67206.0,67205.0,0.25319411]
[1721572396833,0.2117,67206.0,67205.0,0.238324]
[1721572397240,0.58005253,67206.0,67205.0,0.238324]
[1721572397448,0.58005253,67206.0,67205.0,0.100924]
[1721572397449,0.81246974,67206.0,67205.0,0.100924]
[1721572397650,1.11006174,67206.0,67205.0,0.100924]
[1721572398303,1.09806174,67206.0,67205.0,0.100924]
[1721572398670,0.78546974,67206.0,67205.0,0.100924]
[1721572399014,0.79146974,67206.0,67205.0,0.100924]
[1721572399427,0.78546974,67206.0,67205.0,0.100924]
[1721572399833,0.79946974,67206.0,67205.0,0.100924]
[1721572400035,0.49087774,67206.0,67205.0,0.100924]
[1721572400238,0.49087774,67206.0,67205.0,0.238624]
[1721572400444,0.50287774,67206.0,67205.0,0.238624]
[1721572401214,0.35408174,67206.0,67205.0,0.238624]
[1721572401701,0.35408174,67206.0,67205.0,0.25349411]
[1721572401902,0.44329258,67206.0,67205.0,0.25349411]
[1721572402060,0.44329258,67206.0,67205.0,0.238624]
[1721572402258,0.44328584,67206.0,67205.0,0.238624]
[1721572402478,0.50287774,67206.0,67205.0,0.238624]
[1721572402678,0.59208184,67206.0,67205.0,0.238624]
[1721572402879,0.44328584,67206.0,67205.0,0.238624]
[1721572403114,0.80046974,67206.0,67205.0,0.238624]
[1721572403265,0.50287774,67206.0,67205.0,0.238624]
[1721572404245,0.61439377,67206.0,67205.0,0.238624]
[1721572404659,0.80046974,67206.0,67205.0,0.238624]
[1721572404895,1.09806174,67206.0,67205.0,0.238624]
[1721572405073,1.20955041,67206.0,67205.0,0.238624]
[1721572405297,1.20955041,67206.0,67205.0,0.162024]
[1721572405632,1.20955041,67206.0,67205.0,0.100924]
[1721572405835,1.39565374,67206.0,67205.0,0.100924]
[1721572407332,1.40481462,67206.0,67205.0,0.100924]
[1721572407558,1.88603092,67206.0,67205.0,0.100924]
[1721572407790,2.06349408,67206.0,67205.0,0.100924]
[1721572407993,2.02836419,67206.0,67205.0,0.100924]
[1721572408417,2.06349408,67206.0,67205.0,0.100924]
[1721572408617,2.51161224,67206.0,67205.0,0.100924]
[1721572408827,2.20673651,67206.0,67205.0,0.100924]
[1721572409032,2.17160662,67206.0,67205.0,0.100924]
[1721572409446,2.20673651,67206.0,67205.0,0.100924]
[1721572409650,2.35726267,67206.0,67205.0,0.100924]
[1721572409903,2.17160662,67206.0,67205.0,0.100924]
[1721572410129,2.18716915,67206.0,67205.0,0.100924]
[1721572410792,2.34151872,67206.0,67205.0,0.100924]
[1721572411025,1.70967715,67206.0,67205.0,0.100924]
[1721572411238,1.86657715,67206.0,67205.0,0.100924]
[1721572411646,1.70967715,67206.0,67205.0,0.100924]
[1721572412135,1.73267715,67206.0,67205.0,0.100924]
[1721572412712,1.66907715,67206.0,67205.0,0.100924]
[1721572414271,1.76118652,67206.0,67205.0,0.100924]
[1721572416639,1.68548652,67206.0,67205.0,0.100924]
[1721572417987,1.59337715,67206.0,67205.0,0.100924]
[1721572420099,1.89097715,67206.0,67205.0,0.100924]
[1721572420480,2.18856915,67206.0,67205.0,0.100924]
[1721572421879,1.89097715,67206.0,67205.0,0.100924]
[1721572423098,2.18856915,67206.0,67205.0,0.100924]
[1721572423311,1.89097715,67206.0,67205.0,0.100924]
[1721572425008,1.92610704,67206.0,67205.0,0.100924]
[1721572425184,2.08045661,67206.0,67205.0,0.100924]
[1721572425390,2.04532672,67206.0,67205.0,0.100924]
[1721572425587,2.34291872,67206.0,67205.0,0.100924]
[1721572425919,2.04532672,67206.0,67205.0,0.100924]
[1721572426064,2.34291872,67206.0,67205.0,0.100924]
[1721572426289,2.37804861,67206.0,67205.0,0.100924]
[1721572426484,2.08045661,67206.0,67205.0,0.100924]
[1721572426688,2.37804861,67206.0,67205.0,0.100924]
[1721572429508,2.34291872,67206.0,67205.0,0.100924]
[1721572430303,2.37804861,67206.0,67205.0,0.100924]
[1721572431879,2.22369904,67206.0,67205.0,0.100924]
[1721572432289,2.37424151,67206.0,67205.0,0.100924]
[1721572432416,2.37423963,67206.0,67205.0,0.100924]
[1721572432835,2.22369904,67206.0,67205.0,0.04605168]
[1721572433041,0.23394589,67197.0,67196.0,0.009196]
[1721572433258,0.23394589,67197.0,67196.0,1e-08]
[1721572433259,1.28029163,67197.0,67196.0,1e-08]
[1721572433461,1.95495563,67197.0,67196.0,1e-08]
[1721572433671,2.08592977,67197.0,67196.0,1e-08]
[1721572433879,1.97051816,67197.0,67196.0,1e-08]
[1721572434310,2.4935814,67197.0,67196.0,1e-08]
[1721572434509,2.4955814,67197.0,67196.0,1e-08]
[1721572434735,2.34506773,67197.0,67196.0,1e-08]
[1721572435153,2.49558173,67197.0,67196.0,1e-08]
[1721572435596,2.34506773,67197.0,67196.0,1e-08]
[1721572435799,1.42451389,67195.0,67194.0,0.009196]
[1721572436002,1.70189563,67195.0,67194.0,0.009196]
[1721572437257,1.42457289,67192.0,67191.0,0.009196]
[1721572437468,1.70195463,67192.0,67191.0,0.009196]
[1721572437669,1.8563042,67192.0,67191.0,0.009196]
[1721572438079,2.0300042,67192.0,67191.0,0.009196]
[1721572438285,1.8563042,67192.0,67191.0,0.009196]
[1721572438885,2.1869042,67192.0,67191.0,1e-08]
[1721572439088,2.2514042,67192.0,67191.0,1e-08]
[1721572439486,2.2514042,67192.0,67180.0,0.000924]
[1721572439487,2.05294789,67187.0,67180.0,0.000924]
[1721572439631,2.33032963,67187.0,67180.0,0.000924]
[1721572439833,1.389663,67181.0,67180.0,0.000924]
[1721572440042,1.84074474,67181.0,67180.0,0.000924]
[1721572440248,1.97121073,67181.0,67180.0,0.000924]
[1721572441140,1.85474474,67181.0,67180.0,0.000924]
[1721572441739,1.55704174,67181.0,67180.0,0.000924]
[1721572443883,1.57104174,67181.0,67180.0,0.000924]
[1721572444531,1.64894174,67181.0,67180.0,0.000924]
[1721572444730,1.72611653,67181.0,67180.0,0.000924]
[1721572444927,1.8804661,67181.0,67180.0,0.000924]
[1721572445191,2.1781691,67181.0,67180.0,0.000924]
[1721572445593,2.21329899,67181.0,67180.0,0.000924]
[1721572445938,2.19929899,67181.0,67180.0,0.000924]
[1721572446342,2.21329899,67181.0,67180.0,0.000924]
[1721572446544,2.21329899,67181.0,67177.0,0.000924]
[1721572446545,0.08512989,67178.0,67177.0,0.000924]
[1721572446744,1.00680163,67178.0,67177.0,0.000924]
[1721572447099,1.83582695,67178.0,67177.0,0.000924]
[1721572447314,1.83582695,67178.0,67176.0,0.00087115]
[1721572447315,1.12714989,67177.0,67176.0,0.00087115]
[1721572447509,1.5588812,67177.0,67176.0,0.00087115]
[1721572447640,1.82147131,67177.0,67176.0,0.00087115]
[1721572447841,1.8566012,67177.0,67176.0,0.00087115]
[1721572448088,2.0135012,67177.0,67176.0,0.00087115]
[1721572448287,1.042209,67165.0,67164.0,0.084796]
[1721572448486,1.34108816,67165.0,67164.0,0.084796]
[1721572448691,1.29659074,67165.0,67164.0,0.149096]
[1721572449984,1.34109185,67165.0,67164.0,0.149096]
[1721572450226,1.47029074,67165.0,67164.0,0.149096]
[1721572451048,1.47929074,67165.0,67164.0,0.149096]
[1721572451835,0.41226874,67165.0,67164.0,0.16396611]
[1721572452045,1.18151674,67165.0,67164.0,0.16396611]
[1721572452247,0.59596874,67165.0,67164.0,0.16396611]
[1721572452454,0.42226874,67165.0,67164.0,0.16396611]
[1721572452600,0.89374274,67165.0,67164.0,0.16396611]
[1721572453331,1.25477336,67165.0,67164.0,0.149096]
[1721572453534,1.20040848,67165.0,67164.0,0.149096]
[1721572453911,0.90263448,67165.0,67164.0,0.16396611]
[1721572454614,0.60486048,67165.0,67164.0,0.16396611]
[1721572454814,0.90263448,67165.0,67164.0,0.16396611]
[1721572455400,0.45597348,67165.0,67164.0,0.16396611]
[1721572455843,0.60486048,67165.0,67164.0,0.16396611]
[1721572456038,0.019,67165.0,67164.0,0.16396611]
[1721572456244,0.019,67165.0,67164.0,0.31285511]
[1721572456419,0.019,67165.0,67164.0,0.61063311]
[1721572456616,0.019,67165.0,67164.0,0.90841111]
[1721572456816,0.019,67165.0,67164.0,0.95841111]
[1721572457088,0.019,67165.0,67164.0,0.90841111]
[1721572457281,0.019,67165.0,67164.0,1.03206385]
[1721572457621,0.009,67165.0,67164.0,1.03206315]
[1721572457822,0.479,67181.0,67180.0,0.01487011]
[1721572458034,0.18926253,67184.0,67183.0,0.15417011]
[1721572458236,0.34364427,67184.0,67183.0,0.15417011]
[1721572458419,0.04444907,67193.0,67167.0,0.297763]
[1721572458420,0.322532,67190.0,67189.0,0.01487011]
[1721572458619,0.47691374,67190.0,67189.0,0.07797011]
[1721572458842,0.47691374,67190.0,67168.0,0.51304871]
[1721572458843,0.446554,67181.0,67180.0,0.0631]
[1721572459043,0.77463574,67181.0,67180.0,0.0631]
[1721572459242,1.07233874,67181.0,67180.0,0.0631]
[1721572460482,1.17233874,67181.0,67180.0,0.0631]
[1721572461079,0.87463574,67181.0,67180.0,0.0631]
[1721572461280,0.87463574,67181.0,67180.0,0.07897011]
[1721572461281,0.88563574,67181.0,67180.0,0.07897011]
[1721572461542,0.58793274,67181.0,67180.0,0.07897011]
[1721572461745,0.88563574,67181.0,67180.0,0.07897011]
[1721572462154,1.18333874,67181.0,67180.0,0.0641]
[1721572462304,1.18333874,67181.0,67180.0,0.07897011]
[1721572462818,0.58793274,67181.0,67180.0,0.07897011]
[1721572463191,0.60093274,67181.0,67180.0,0.07897011]
[1721572463394,0.89863574,67181.0,67180.0,0.07897011]
[1721572463583,1.01826861,67181.0,67180.0,0.0641]
[1721572464261,1.49404174,67181.0,67180.0,0.001]
[1721572464623,1.50284845,67181.0,67180.0,0.001]
[1721572464822,1.20514545,67181.0,67180.0,0.001]
[1721572465871,1.20514545,67181.0,67180.0,0.01587011]
[1721572466158,1.20514545,67181.0,67180.0,0.09207011]
[1721572466159,0.90744245,67181.0,67180.0,0.09207011]
[1721572466859,0.60973945,67181.0,67180.0,0.09207011]
[1721572467691,0.2977,67181.0,67180.0,0.09207011]
[1721572467847,0.2977,67181.0,67180.0,0.15517011]
[1721572468073,0.1977,67181.0,67180.0,0.15517011]
[1721572469470,0.52603105,67181.0,67180.0,0.1403]